Cogmind - Beta 13 X3 @@@ ROGUE MODE // 2024.02.16 @ 18:30:34 Player: IzRey Result: Destroyed by S-10 Pest with Light Assault Rifle Performance ------------- Evolutions (2) 1000 Regions Visited (3) 600 Robots Destroyed (12) 60 Value Destroyed (169) 169 Prototype IDs (0) 0 Alien Tech Used (0) 0 Bonus (0) 0 TOTAL SCORE: 1829 Bonus ------- None Cogmind --------- Core Integrity 0/550 Matter 275/300 Energy 97/100 System Corruption 0% Temperature Cool (0) Movement Core (50) Location -8/Materials Parts ------- > --- POWER (1) -------- (None) > --- PROPULSION (2) --- (None) > --- UTILITY (6) ------ Machine Analyzer > --- WEAPON (2) ------- (None) > --- INVENTORY (5) ---- Light Ion Engine Melee Analysis Suite ECM Suite Hardened Medium Armor Plating Heavy Mace Peak State ------------ > --- POWER ------------ (None) > --- PROPULSION ------- (None) > --- UTILITY ---------- Trap Scanner Machine Analyzer > --- WEAPON ----------- Heavy Mace > --- INVENTORY -------- Light Ion Engine ECM Suite Hardened Medium Armor Plating [Rating: 9] Favorites ----------- Power Light Ion Engine Engine Light Ion Engine Propulsion None Utility Trap Scanner Device Trap Scanner Processor Machine Analyzer Protection Core Shielding Weapon Light Assault Rifle Ballistic Gun Light Assault Rifle Impact Weapon Heavy Mace Slashing Weapon Mining Claw Build | -11 -10 -9 -8 ------- Run | Yrd Mat Mat Mat Slots Evolved 4 | . . 2 2 Power . | . . . . Propulsion . | . . . . Utility 4 | . . 2 2 Weapon . | . . . . Parts Attached 23 | 4 6 7 6 Power 1 | . 1 . . Engine 1 | . 1 . . Core . | . . . . Reactor . | . . . . Propulsion . | . . . . Treads . | . . . . Leg . | . . . . Wheel . | . . . . Hover . | . . . . Flight . | . . . . Utility 6 | 1 2 1 2 Device 3 | 1 1 1 . Storage . | . . . . Processor 1 | . . . 1 Hackware . | . . . . Protection 2 | . 1 . 1 Artifact . | . . . . Weapon 16 | 3 3 6 4 Energy Gun . | . . . . Energy Cannon . | . . . . Ballistic Gun 10 | 3 1 5 1 Ballistic Cannon . | . . . . Launcher . | . . . . Special Weapon . | . . . . Impact Weapon 2 | . . . 2 Slashing Weapon 4 | . 2 1 1 Piercing Weapon . | . . . . Special Melee Weapon . | . . . . Unidentified Prototypes . | . . . . Parts Lost 8 | . 3 1 4 Power 1 | . 1 . . Propulsion . | . . . . Utility 4 | . 2 . 2 Weapon 3 | . . 1 2 Highest Loss Streak 3 | . 3 1 2 To Critical Strikes . | . . . . Average Slot Usage (%) 23 | . 33 21 17 Device 8 | . 15 4 7 Processor 1 | . . . 3 Protection 2 | . 4 . 2 Ballistic Gun 4 | . 4 10 . Slashing Weapon 5 | . 7 6 1 Naked Turns . | . . . . Heaviest Build 6 | 2 6 5 5 Greatest Support 9 | 3 9 3 3 Greatest Overweight (x) 1 | . 1 1 1 Average Overweight (x) . | . . . . Largest Inventory Capacity 5 | 5 5 5 5 Average Capacity 5 | 5 5 5 5 Most Carried 5 | 1 4 5 5 Average Carried 2 | . 2 4 3 Final Capacity 5 | 5 5 5 5 Final Carried 5 | 1 3 5 5 Class Distribution -------------------- 100% | Mutant Dominant Class ---------------- Mutant | -10/Materials Mutant | -9/Materials Mutant | -8/Materials Resources | -11 -10 -9 -8 ----------- Run | Yrd Mat Mat Mat Matter Collected 452 | 276 65 60 51 Remotely . | . . . . Salvage Created 474 | 167 149 60 98 Parts 29 | 9 8 9 3 Haulers Intercepted 1 | . 1 . . Recyclers Shooed 2 | . 2 . . Parts Field Recycled . | . . . . Retrieved Matter . | . . . . Parts Self-Destructed . | . . . . Prevented . | . . . . Kills | -11 -10 -9 -8 ------- Run | Yrd Mat Mat Mat Combat Hostiles Destroyed 6 | . . 4 2 Melee 2 | . . . 2 Guns 4 | . . 4 . Classes Destroyed 5 | 2 1 1 1 Tunneler 3 | 3 . . . Hauler 1 | . 1 . . Recycler 2 | 1 1 . . Swarmer 4 | . . 4 . Grunt 2 | . . . 2 Best Kill Streak 4 | 4 2 4 1 Combat Bots Only 4 | . . 4 1 Max Kills in Single Turn 2 | 1 1 2 1 Gunslinging 1 | . . 1 . Exploded . | . . . . Melee 1 | . . . 1 Uniques/NPCs Destroyed . | . . . . Combat | -11 -10 -9 -8 -------- Run | Yrd Mat Mat Mat Hostile Shots Fired 183 | . 53 72 58 Missed 53 | . 14 29 10 Damage Taken 1551 | . 318 504 729 Core 1088 | . 228 307 553 Absorbed by Shields . | . . . . Redirected to Shielding 51 | . . . 51 Core Remaining (%) 43 | 100 8 23 . Volleys Fired 54 | 32 5 9 8 Largest 2 | 2 1 2 1 Hottest 40 | 40 20 40 20 Shots Fired 67 | 36 5 18 8 Gun 67 | 36 5 18 8 Cannon . | . . . . Launcher . | . . . . Special . | . . . . Kinetic 67 | 36 5 18 8 Thermal . | . . . . Explosive . | . . . . Electromagnetic . | . . . . Robot Hit Streak 7 | 7 4 3 3 Robot Miss Streak 3 | 3 2 3 1 Penetration Max . | . . . . Secondary Targets 1 | . . 1 . Max Gunslinging Chain 1 | . . 1 . Shots Hit Robots 55 | 20 9 11 15 Core Hits 23 | 8 4 6 5 Critical Kills . | . . . . Critical Parts Destroyed . | . . . . Critical Strikes . | . . . . Melee Attacks 34 | . 12 4 18 Impact 6 | . . . 6 Slashing 28 | . 12 4 12 Piercing . | . . . . Sneak Attacks 4 | . 4 . . Combat Hostiles . | . . . . Follow-up Attacks . | . . . . Damage Inflicted 800 | 165 245 113 277 Guns 325 | 165 28 90 42 Cannons . | . . . . Explosions . | . . . . Melee 475 | . 217 23 235 Ramming . | . . . . Kinetic 325 | 165 28 90 42 Thermal . | . . . . Explosive . | . . . . Electromagnetic . | . . . . Impact 23 | . . . 23 Slashing 452 | . 217 23 212 Piercing . | . . . . Highest Corruption . | . . . . Average Corruption . | . . . . Corruption Purged . | . . . . Corruption Blocked . | . . . . Overload Shots . | . . . . Overflow Damage 54 | . 54 . . Projectiles . | . . . . Explosions . | . . . . Melee 54 | . 54 . . Knockbacks . | . . . . Impact . | . . . . Kinetic . | . . . . Secondary . | . . . . Self-Inflicted Damage . | . . . . Shots . | . . . . Rammed . | . . . . Targets Rammed . | . . . . Kicked . | . . . . Crushed . | . . . . Highest Temperature . | . . . . Average Temperature . | . . . . Received Heat Transfer 525 | . . 102 423 Siege Activations . | . . . . Robots Corrupted . | . . . . Combat Hostiles . | . . . . Parts Fried . | . . . . Impact Corruptions . | . . . . Robots Melted . | . . . . Combat Hostiles . | . . . . Parts Melted . | . . . . Heat Transferred . | . . . . Parts Sabotaged . | . . . . Parts Stolen . | . . . . Parts Stripped . | . . . . Power Chain Reactions . | . . . . Alert | -11 -10 -9 -8 ------- Run | Yrd Mat Mat Mat Peak Influence 222 | 20 41 175 222 Initial 69 | . 13 4 69 Average 66 | 7 19 101 112 Maximum Alert Level 1 | . . . 1 Low Security (%) 97 | 100 100 100 93 Level 1 2 | . . . 6 Level 2 . | . . . . Level 3 . | . . . . Level 4 . | . . . . Level 5 . | . . . . High Security . | . . . . Max Security . | . . . . Squads Dispatched 4 | . 1 2 1 Investigation 1 | . . . 1 Extermination . | . . . . Reinforcement 3 | . 1 2 . Assault . | . . . . Garrison . | . . . . Intercept . | . . . . Searches Triggered . | . . . . Construction Impeded . | . . . . Haulers Reinforced . | . . . . Active Scanning Responses . | . . . . Cargo Convoy Interrupts . | . . . . Stealth | -11 -10 -9 -8 --------- Run | Yrd Mat Mat Mat Distress Signals 6 | . 1 4 1 Communications Jammed . | . . . . Distress Signals . | . . . . Times Spotted 41 | . 6 16 19 Peak Tracking Total 11 | . 6 11 6 Tactical Retreats 3 | . . . 3 Traps | -11 -10 -9 -8 ------- Run | Yrd Mat Mat Mat Traps Triggered 1 | . . . 1 Indirectly . | . . . . Trap Hack Attempts . | . . . . Triggered . | . . . . Disarmed . | . . . . Reprogrammed . | . . . . Reused . | . . . . Traps Extracted . | . . . . Installed . | . . . . Triggered . | . . . . Machines | -11 -10 -9 -8 ---------- Run | Yrd Mat Mat Mat Machines Disabled . | . . . . Max in Single Turn . | . . . . Machines Repaired . | . . . . Machines Dismantled . | . . . . Machines Sabotaged . | . . . . Overloaded Fab Kills . | . . . . Hacking | -11 -10 -9 -8 --------- Run | Yrd Mat Mat Mat Machines Accessed 3 | . 2 1 . Terminals 3 | . 2 1 . Fabricators . | . . . . Repair Stations . | . . . . Recycling Units . | . . . . Scanalyzers . | . . . . Garrison Access . | . . . . Total Hacks 5 | . 2 3 . Successful 1 | . . 1 . Failed 4 | . 2 2 . Catastrophic 2 | . 2 . . Database Lockouts . | . . . . Manual 5 | . 2 3 . Terminals 5 | . 2 3 . Fabricators . | . . . . Repair Stations . | . . . . Recycling Units . | . . . . Scanalyzers . | . . . . Garrison Access . | . . . . Terminal Hacks . | . . . . Fabricator Hacks . | . . . . Repair Station Hacks . | . . . . Recycling Unit Hacks . | . . . . Scanalyzer . | . . . . Garrison Access Hacks . | . . . . Unauthorized Hacks 1 | . . 1 . Terminals 1 | . . 1 . Botnet 1 | . . 1 . Fabricators . | . . . . Repair Stations . | . . . . Recycling Units . | . . . . Scanalyzers . | . . . . Garrison Access . | . . . . Data Cores Recovered . | . . . . Used . | . . . . Hacking Detections 3 | . 2 1 . Full Trace Events . | . . . . Feedback Events . | . . . . Feedback Blocked . | . . . . Robot Schematics Acquired . | . . . . Robots Built . | . . . . Authchips . | . . . . Time . | . . . . Total Robot Build Rating . | . . . . Part Schematics Acquired . | . . . . Parts Built . | . . . . Authchips . | . . . . Time . | . . . . Total Part Build Rating . | . . . . Parts Repaired . | . . . . Time . | . . . . Parts Recycled . | . . . . Recycled Matter . | . . . . Retrieved Matter . | . . . . Retrieved Components . | . . . . Parts Scanalyzed . | . . . . Part Schematics Acquired . | . . . . Parts Damaged . | . . . . Bothacking | -11 -10 -9 -8 ------------ Run | Yrd Mat Mat Mat Used RIF Installer . | . . . . Robots Hacked . | . . . . Non-combat . | . . . . Combat . | . . . . Robot Hacks Applied . | . . . . Relay Couplers Released . | . . . . Fabnet Peak Effective % . | . . . . Robots Rewired . | . . . . Allies Hacked . | . . . . Hacks Repelled . | . . . . Allies | -11 -10 -9 -8 -------- Run | Yrd Mat Mat Mat Total Allies . | . . . . Largest Group . | . . . . Highest-Rated Group . | . . . . Highest-Rated Ally . | . . . . Total Orders . | . . . . Ally Attacks . | . . . . Total Damage . | . . . . Kills . | . . . . Allies Corrupted . | . . . . Allies Melted . | . . . . Intel | -11 -10 -9 -8 ------- Run | Yrd Mat Mat Mat Robot Analysis Total . | . . . . Derelict Logs Recovered . | . . . . Drone Launches . | . . . . Drone Recoveries . | . . . . Exploration | -11 -10 -9 -8 ------------- Run | Yrd Mat Mat Mat Turns Passed 638 | 114 171 157 196 Spaces Moved 656 | 39 224 177 216 Core 656 | 39 224 177 216 Treads . | . . . . Legs . | . . . . Wheels . | . . . . Hover . | . . . . Flight . | . . . . Fastest Speed 50 | 50 50 50 50 Average Speed 54 | 50 51 61 51 Slowest Speed 100 | 50 100 100 100 Overloaded Moves . | . . . . Propulsion Burnouts . | . . . . Robots Hopped . | . . . . Cave-ins Triggered . | . . . . Exploration Rate (%) 27 | 4 50 29 25 Regions Visited 3 Branch Regions . Pre-discovered Areas . | . . . . Known Exits Taken . | . . . . Unknown Exits Taken 3 | 1 1 1 . Scrap Searched . | . . . . Spaces Dug 3 | . . . 3 Terrain Destroyed 3 | . . . 3 Melee 3 | . . . 3 Projectile . | . . . . AOE . | . . . . Terrain Rammed . | . . . . Walls Destroyed . | . . . . Machines Disabled . | . . . . Actions | -11 -10 -9 -8 --------- Run | Yrd Mat Mat Mat Total 814 | 103 251 201 259 Wait 33 | 27 . . 6 Move 653 | 38 223 176 216 Hop . | . . . . Pick Up 6 | . 1 2 3 Fast Attach 8 | 3 3 1 1 Attach 11 | 1 3 2 5 Detach 9 | 2 4 1 2 Swap 4 | . . 4 . Drop 2 | . . 2 . Fire 54 | 32 5 9 8 Melee 34 | . 12 4 18 Ram . | . . . . Kick . | . . . . Crush . | . . . . Escape Stasis . | . . . . Rewire . | . . . . Trap . | . . . . Miscellaneous . | . . . . Route ------- -11/Scrapyard -10/Materials -9/Materials (discovered 2 exits: [*Mat] / [*Min]) -8/Materials History --------- Turn | Location | Event 31 | -11/Scrapyard | Discovered new exit (range 16) 115 | -11/Scrapyard | Entered Materials 252 | -10/Materials | Core integrity fell below 50% 280 | -10/Materials | Core integrity fell below 20% 281 | -10/Materials | Discovered new exit (range 11) 286 | -10/Materials | Entered another Materials area 286 | -9/Materials | Evolved 2 slots: Utility x2 301 | -9/Materials | Build established: Mutant 307 | -9/Materials | Discovered new exit (range 13) 310 | -9/Materials | Lost 3 parts (1p2u) 429 | -9/Materials | Discovered new exit (range 15) 432 | -9/Materials | Core integrity fell below 50% 443 | -9/Materials | Entered another Materials area 443 | -8/Materials | Evolved 2 slots: Utility x2 582 | -8/Materials | Core integrity fell below 50% 602 | -8/Materials | Core integrity fell below 20% 639 | -8/Materials | Destroyed by S-10 Pest with Light Assault Rifle Last Messages --------------- 00543_ K-01 Serf cleans the Pressure Siphon. 00547_ Acquired Hrd. Medium Armor Plating. 00551_ Triggered Alarm Trap. 00551_ An alarm sounds. 00551_ ALERT: Alarm triggered, dispatching investigation squad. 00561_ Acquired Hvy. Mace. 00563_ Acquired Machine Analyzer. 00588_ Critical hit (Burn: +37). 00597_ Trap Scanner destroyed. 00604_ >> Machine Analyzer network decryption results: 00604_ Recycling Unit x1 00611_ Critical hit (Burn: +37). 00616_ T-07 Excavator is excavating. 00623_ >> Machine Analyzer network decryption results: 00623_ Terminal x1 00625_ Acquired Melee Analysis Suite. 00627_ K-01 Serf collects debris. 00630_ W-25 Informer sends out distress signal. 00639_ C-30 ARC bursts open, deploying its payload. 00639_ S-10 Pest unfolds itself. Map ----- +----------------------------------------------------+ | ?????????????????????????"""?????????????##???# | | ????????????????????????"""""?????????#### #??# | | ????????????????????????"""""?????????? ?# | | ????????????????????????"""""????????? """ ?# | | ?????????????????????????"""?????????? """ # | | ?????????????????????????????????????# """ # | | ?????????????????????????????????????# + | | ?????????????????????????????????????# "" # | | ?????????????????????#####+#?#?####### "T # | | ?????????????????????? ?# ## "" ?# | | ??????????????????????? ?+ """ !## ?# | | ???????????????????????? ## """ ####" "#??# | | ????????????????????????# ## """ #??#"R"???# | | ???????????????????####?# s #?? #??#""????# | | ???????????????????? ?#a%s#???? #??#?????## | | ????????????????????? #ss #######+########## | | ?????????????????????? #g | | ??????????????????????? / | | ????????????????????????# gg | | ????????????????????????# Y########### | | ????????????????????????# ####????#"" # | | ????????????????????????# # ?????#"Y """" # | | ????????????????????????# t#?????#"" """" # | | ????????????????????????# ###?????### """" # | | ????????????????????????# #?????????# # | | ????????????????????????#@ #?????????# / # | | ????????????????????????# #??????#####+##### # | | ????????????????????????# #??????#]! # # | | ????????????????????????# #??????#]! / # # | | ????????????????????????# k ########!! = + # | | ????????????????????????# # [ # # | | ????????????????????????# # * + + | | ????????????????????????# ########### # | | ?????T?????????????????#;########+#####??????### # | | ???????????????????????##????# #????????# # | | ?????????????????????????????#! """ #????????# # | | ?????????????????????????????# "T" #???????# # | | ?????????????????????????????# ##???????# # | | ?????????????????????????????# #????????# # | | ?????????????????????????????#! """"" #????????# # | | ?????????????????????????????# """"" #????????# # | | ?????????????????????????????# """"" #????##??# | | ?????????????????????????????# #????#"###/# | | ?????????????????????????????#######??#?????# | | ????????????????????????????????????????????# | | ????????????????????????????????????????????# | | ????????????????????????????????????????????# | | ????????????????????????????????????????????#/ | | ???????????????????????????????????????????#"##### | | ???????????????????????????????????????????##????? | +----------------------------------------------------+ Best States ------------- Heat Dissipation 31 Energy Generation 10 Energy Capacity 125 Matter Stores 300 Matter Capacity 300 Sight Range 16 Terrain Scan Density 10 Additional Mass Support 6 Core Shielding 20 Evasion (%) 50 Item Schematics ----------------- None Robot Schematics ------------------ None Fabricated ------------ Nothing Alien Tech Used ----------------- None Achievements -------------- None Challenges ------------ None Game ------ Seed ZhirovSwarmLance Manual? 0 Play Time 00:30:08 Cumulative 598.7 hours Start 2024.02.14 @ 19:34:51 End 2024.02.16 @ 18:30:34 Sessions 62 Manual Loads 0 Difficulty Rogue Special Mode None Game No. 101 Rogue 84 Adventurer 17 Explorer 0 Win Type - Total 3 Types 3/0/0/0/0/0/0/0/0 Lore% 57 Gallery% 68 Achievement% 58 Wizard Run 0 Options --------- Layout 2 ASCII 0 Keyboard 1 Movement Vi Keybinds 0 Fullscreen 1 Font 18/X11 Map View 76x59 Zoom Use 0% Tactical HUD 1 Map Filters NONE Filters NONE Steam 1 RUN: 911feed1-d61d-4c35-84da-f64b446727d4